[Event "FIDE WCCC Open-08 2024"]
[Site "Montesilvano"]
[Date "2024.11.19"]
[Round "5.28"]
[White "Arsenijevic, Matija"]
[Black "Nguyen Thanh San"]
[Result "0-1"]
[ECO "E20"]
[WhiteElo "1700"]
[BlackElo "1493"]
[Annotator "NA RC"]
[PlyCount "58"]
[EventDate "2024.11.18"]
[EventType "swiss"]
[EventCountry "ITA"]
[SourceTitle "playchess.com"]
[Source "ChessBase"]
[SourceQuality "1"]
[TimeControl "5400+30"]

1. d4 {[%emt 0:00:01]} Nf6 {[%emt 0:00:18]} 2. c4 {[%emt 0:00:08]} e6 {[%emt 0:00:17]} 3. Nc3 {[%emt 0:00:13]} Bb4 {[%emt 0:00:15]} 4. Bd2 {[%emt 0:00:19]} O-O {[%emt 0:00:17]} 5. a3 {[%emt 0:00:35]} Bxc3 {[%emt 0:01:35]} 6. Bxc3 {[%emt 0:00:11]} d5 {[%emt 0:03:24]} 7. e3 {[%emt 0:05:47]} b6 {[%emt 0:00:47]} 8. cxd5 {[%emt 0:10:27]} Nxd5 {[%emt 0:02:38]} 9. Bd3 {[%emt 0:05:01]} Nxc3 {[%emt 0:00:24]} 10. bxc3 {[%emt 0:00:24]} Bb7 {[%emt 0:00:06]} 11. Nf3 {[%emt 0:02:04]} Nd7 {[%emt 0:00:24]} 12. O-O {[%emt 0:02:23]} c5 {[%emt 0:01:48]} 13. Rc1 {[%emt 0:05:18]} Rc8 {[%emt 0:17:54]} 14. Qe2 {[%emt 0:07:10]} Qf6 {[%emt 0:08:54]} 15. e4 {[%emt 0:09:53]} Rc7 {[%emt 0:17:26]} 16. Qe3 {[%emt 0:08:29]} h6 {[%emt 0:05:07]} 17. e5 {[%emt 0:01:47]} Qe7 {[%emt 0:00:34]} 18. Be4 {[%emt 0:09:48]} Rfc8 {[%emt 0:01:06]} 19. Bxb7 {[%emt 0:01:27]} Rxb7 {[%emt 0:00:03]} 20. Qe4 {[%emt 0:01:49]} Rbc7 {[%emt 0:00:24]} 21. d5 {[%emt 0:00:48]} exd5 {[%emt 0:09:29]} 22. Qxd5 {[%emt 0:00:26]} Nf8 {[%emt 0:00:24]} 23. Rcd1 {[%emt 0:05:17]} Rd7 {[%emt 0:02:56]} 24. Qe4 {[%emt 0:01:14]} Rcd8 {[%emt 0:00:19]} 25. Qe2 {[%emt 0:01:08]} Ne6 {[%emt 0:02:51]} 26. Rd2 {[%emt 0:04:22]} Rxd2 {[%emt 0:01:14]} 27. Nxd2 {[%emt 0:00:14]} Nf4 {[%emt 0:00:03]} 28. Qe3 {[%emt 0:00:54]} Qg5 {[%emt 0:00:24]} 29. Ne4 {[%emt 0:01:11]} Qxg2# {[%emt 0:00:26]} 0-1

[Event "FIDE WCCC Open-08 2024"]
[Site "Montesilvano"]
[Date "2024.11.19"]
[Round "5.29"]
[White "Le Doan, Minh Thuc"]
[Black "Lau, Great Boyou"]
[Result "0-1"]
[ECO "B33"]
[WhiteElo "1677"]
[BlackElo "1514"]
[Annotator "NA RC"]
[PlyCount "66"]
[EventDate "2024.11.18"]
[EventType "swiss"]
[EventCountry "ITA"]
[SourceTitle "playchess.com"]
[Source "ChessBase"]
[SourceQuality "1"]
[TimeControl "5400+30"]

1. e4 {[%emt 0:00:01]} c5 {[%emt 0:00:05]} 2. Nf3 {[%emt 0:00:06]} Nc6 {[%emt 0:00:11]} 3. d4 {[%emt 0:00:07]} cxd4 {[%emt 0:00:09]} 4. Nxd4 {[%emt 0:00:14]} Nf6 {[%emt 0:00:17]} 5. Nc3 {[%emt 0:00:12]} e5 {[%emt 0:00:11]} 6. Nxc6 {[%emt 0:00:53]} bxc6 {[%emt 0:00:32]} 7. Bc4 {[%emt 0:01:07]} Bb4 {[%emt 0:01:41]} 8. O-O {[%emt 0:00:44]} O-O {[%emt 0:03:01]} 9. Re1 {[%emt 0:03:38]} d5 {[%emt 0:03:36]} 10. exd5 {[%emt 0:02:38]} cxd5 {[%emt 0:00:35]} 11. Bb3 {[%emt 0:00:10]} d4 {[%emt 0:01:37]} 12. a3 {[%emt 0:00:14]} Ba5 {[%emt 0:01:25]} 13. Rxe5 {[%emt 0:07:38]} dxc3 {[%emt 0:00:29]} 14. Qxd8 {[%emt 0:03:37]} Rxd8 {[%emt 0:04:05]} 15. Bg5 {[%emt 0:03:06]} cxb2 {[%emt 0:04:05]} 16. Rb1 {[%emt 0:00:15]} Bc3 {[%emt 0:02:55]} 17. Re7 {[%emt 0:00:19]} Bf5 {[%emt 0:03:38]} 18. Kf1 {[%emt 0:04:49]} Rab8 {[%emt 0:09:44]} 19. Ba4 {[%emt 0:02:12]} Ne4 {[%emt 0:03:00]} 20. Rxe4 {[%emt 0:04:47]} Bxe4 {[%emt 0:00:43]} 21. Bxd8 {[%emt 0:00:27]} Rxd8 {[%emt 0:00:20]} 22. f3 {[%emt 0:01:38]} Bf5 {[%emt 0:01:14]} 23. g4 {[%emt 0:03:56]} Be6 {[%emt 0:01:29]} 24. Bb3 {[%emt 0:01:48]} Rd2 {[%emt 0:01:40]} 25. h3 {[%emt 0:08:14]} Bxb3 {[%emt 0:00:37]} 26. cxb3 {[%emt 0:00:07]} Rc2 {[%emt 0:00:16]} 27. Rd1 {[%emt 0:01:48]} Rc1 {[%emt 0:00:34]} 28. Ke2 {[%emt 0:00:17]} Rxd1 {[%emt 0:00:28]} 29. Kxd1 {[%emt 0:00:08]} b1=Q+ {[%emt 0:00:11]} 30. Ke2 {[%emt 0:00:20]} Qc2+ {[%emt 0:00:11]} 31. Ke3 {[%emt 0:00:21]} Qd2+ {[%emt 0:00:11]} 32. Ke4 {[%emt 0:00:23]} Qd4+ {[%emt 0:00:11]} 33. Kf5 {[%emt 0:00:14]} Qe5# {[%emt 0:00:50]} 0-1

[Event "FIDE WCCC Open-08 2024"]
[Site "Montesilvano"]
[Date "2024.11.19"]
[Round "5.30"]
[White "Morozevich, Kirill Aleks"]
[Black "Huzela, Lukyan"]
[Result "1-0"]
[ECO "E14"]
[WhiteElo "1484"]
[BlackElo "1651"]
[Annotator "NA RC"]
[PlyCount "141"]
[EventDate "2024.11.18"]
[EventType "swiss"]
[EventCountry "ITA"]
[SourceTitle "playchess.com"]
[Source "ChessBase"]
[SourceQuality "1"]
[TimeControl "5400+30"]

1. d4 {[%emt 0:00:02]} Nf6 {[%emt 0:00:19]} 2. c4 {[%emt 0:00:08]} e6 {[%emt 0:00:01]} 3. Nf3 {[%emt 0:00:10]} Bb4+ {[%emt 0:00:06]} 4. Nbd2 {[%emt 0:00:10]} O-O {[%emt 0:02:14]} 5. e3 {[%emt 0:00:06]} d5 {[%emt 0:00:46]} 6. a3 {[%emt 0:00:21]} Be7 {[%emt 0:00:40]} 7. Bd3 {[%emt 0:00:13]} b6 {[%emt 0:02:44]} 8. O-O {[%emt 0:00:33]} Bb7 {[%emt 0:01:08]} 9. b3 {[%emt 0:00:18]} Nbd7 {[%emt 0:01:28]} 10. Bb2 {[%emt 0:00:13]} Rc8 {[%emt 0:04:13]} 11. Re1 {[%emt 0:00:28]} Ne4 {[%emt 0:00:27]} 12. Rc1 {[%emt 0:02:04]} f6 {[%emt 0:04:55]} 13. b4 {[%emt 0:00:39]} f5 {[%emt 0:08:16]} 14. c5 {[%emt 0:00:33]} c6 {[%emt 0:00:12]} 15. Nf1 {[%emt 0:01:42]} Rf6 {[%emt 0:05:15]} 16. N3d2 {[%emt 0:00:57]} Rg6 {[%emt 0:01:41]} 17. f3 {[%emt 0:00:32]} Ng5 {[%emt 0:00:02]} 18. Kh1 {[%emt 0:00:55]} Nf6 {[%emt 0:13:15]} 19. e4 {[%emt 0:08:24]} dxe4 {[%emt 0:02:57]} 20. fxe4 {[%emt 0:00:07]} Ng4 {[%emt 0:01:30]} 21. Qe2 {[%emt 0:01:22]} Nxe4 {[%emt 0:05:05]} 22. Nxe4 {[%emt 0:00:36]} fxe4 {[%emt 0:00:11]} 23. Bxe4 {[%emt 0:00:09]} Rg5 {[%emt 0:00:09]} 24. Bf3 {[%emt 0:02:07]} Nf6 {[%emt 0:05:30]} 25. Qxe6+ {[%emt 0:00:23]} Kf8 {[%emt 0:00:06]} 26. Nd2 {[%emt 0:12:58]} Rg6 {[%emt 0:01:37]} 27. Nc4 {[%emt 0:03:53]} Ne8 {[%emt 0:09:11]} 28. Qe2 {[%emt 0:04:17]} Ba6 {[%emt 0:05:35]} 29. Be4 {[%emt 0:06:44]} Rf6 {[%emt 0:02:50]} 30. Bd3 {[%emt 0:04:40]} h6 {[%emt 0:03:24]} 31. d5 {[%emt 0:02:51]} cxd5 {[%emt 0:01:50]} 32. Bxf6 {[%emt 0:00:12]} Nxf6 {[%emt 0:00:06]} 33. Ne5 {[%emt 0:48:13]} Bxd3 {[%emt 0:01:06]} 34. Qxd3 {[%emt 0:00:00]} Ne4 {[%emt 0:00:33]} 35. Rf1+ {[%emt 0:00:00]} Bf6 {[%emt 0:00:18]} 36. Ng4 {[%emt 0:00:00]} Kf7 {[%emt 0:01:57]} 37. Nxf6 {[%emt 0:00:00]} Nxf6 {[%emt 0:00:08]} 38. cxb6 {[%emt 0:00:00]} axb6 {[%emt 0:01:03]} 39. Rxc8 {[%emt 0:00:00]} Qxc8 {[%emt 0:00:02]} 40. Qxd5+ {[%emt 0:00:00]} Qe6 {[%emt 0:00:27]} 41. Qxe6+ {[%emt 0:00:00]} Kxe6 {[%emt 0:00:02]} 42. a4 {[%emt 0:00:00]} Nd5 {[%emt 0:00:41]} 43. Rb1 {[%emt 0:00:00]} Nc3 {[%emt 0:00:11]} 44. Ra1 {[%emt 0:00:00]} Nd5 {[%emt 0:02:14]} 45. a5 {[%emt 0:00:00]} bxa5 {[%emt 0:01:11]} 46. bxa5 {[%emt 0:00:00]} Nc7 {[%emt 0:00:21]} 47. a6 {[%emt 0:00:00]} Kd7 {[%emt 0:00:11]} 48. a7 {[%emt 0:00:00]} Na8 {[%emt 0:00:05]} 49. Rb1 {[%emt 0:00:00]} Kc7 {[%emt 0:00:26]} 50. Rb8 {[%emt 0:00:00]} Nb6 {[%emt 0:00:07]} 51. a8=Q {[%emt 0:00:00]} Nxa8 {[%emt 0:00:09]} 52. Rxa8 {[%emt 0:00:00]} Kd6 {[%emt 0:00:08]} 53. Rg8 {[%emt 0:00:00]} Ke6 {[%emt 0:00:08]} 54. Rxg7 {[%emt 0:00:00]} Kf6 {[%emt 0:00:05]} 55. Ra7 {[%emt 0:00:00]} Kg5 {[%emt 0:00:06]} 56. Ra6 {[%emt 0:00:00]} h5 {[%emt 0:00:09]} 57. Kg1 {[%emt 0:00:00]} Kf5 {[%emt 0:00:05]} 58. Kf2 {[%emt 0:00:00]} Ke5 {[%emt 0:00:16]} 59. Ra5+ {[%emt 0:00:00]} Kf6 {[%emt 0:00:06]} 60. Rxh5 {[%emt 0:00:00]} Kg6 {[%emt 0:00:06]} 61. g4 {[%emt 0:00:00]} Kf6 {[%emt 0:00:22]} 62. Kf3 {[%emt 0:00:00]} Ke6 {[%emt 0:00:05]} 63. Ke4 {[%emt 0:00:00]} Kd6 {[%emt 0:00:07]} 64. g5 {[%emt 0:00:00]} Ke6 {[%emt 0:00:06]} 65. Rh6+ {[%emt 0:00:00]} Kf7 {[%emt 0:00:08]} 66. Kf5 {[%emt 0:00:00]} Kg7 {[%emt 0:00:06]} 67. Ra6 {[%emt 0:00:00]} Kf7 {[%emt 0:00:06]} 68. Ra7+ {[%emt 0:00:00]} Kg8 {[%emt 0:00:08]} 69. Kf6 {[%emt 0:00:00]} Kh8 {[%emt 0:00:12]} 70. g6 {[%emt 0:00:00]} Kg8 {[%emt 0:00:05]} 71. Ra8# {[%emt 0:00:00]} 1-0

[Event "FIDE WCCC Open-08 2024"]
[Site "Montesilvano"]
[Date "2024.11.19"]
[Round "5.31"]
[White "Ranganathan, Aadith"]
[Black "Saathvik Chakravarthy Ramayana"]
[Result "1-0"]
[ECO "B33"]
[WhiteElo "1645"]
[BlackElo "1466"]
[Annotator "NA RC"]
[PlyCount "99"]
[EventDate "2024.11.18"]
[EventType "swiss"]
[EventCountry "ITA"]
[SourceTitle "playchess.com"]
[Source "ChessBase"]
[SourceQuality "1"]
[TimeControl "5400+30"]

1. e4 {[%emt 0:00:16]} c5 {[%emt 0:00:14]} 2. Nf3 {[%emt 0:00:21]} Nc6 {[%emt 0:00:18]} 3. d4 {[%emt 0:01:13]} cxd4 {[%emt 0:00:13]} 4. Nxd4 {[%emt 0:00:26]} Nf6 {[%emt 0:00:14]} 5. Nc3 {[%emt 0:00:28]} e5 {[%emt 0:00:27]} 6. Ndb5 {[%emt 0:00:38]} d6 {[%emt 0:00:48]} 7. Nd5 {[%emt 0:00:14]} Nxd5 {[%emt 0:00:37]} 8. exd5 {[%emt 0:00:13]} Ne7 {[%emt 0:00:12]} 9. c4 {[%emt 0:00:15]} Ng6 {[%emt 0:00:14]} 10. Bd3 {[%emt 0:00:53]} a6 {[%emt 0:06:12]} 11. Nc3 {[%emt 0:03:20]} Be7 {[%emt 0:01:15]} 12. O-O {[%emt 0:02:31]} O-O {[%emt 0:03:12]} 13. Bxg6 {[%emt 0:05:01]} fxg6 {[%emt 0:03:40]} 14. f4 {[%emt 0:00:45]} Qb6+ {[%emt 0:02:28]} 15. Kh1 {[%emt 0:00:56]} exf4 {[%emt 0:02:07]} 16. Qe2 {[%emt 0:00:30]} Bg5 {[%emt 0:02:37]} 17. Ne4 {[%emt 0:01:53]} Qd8 {[%emt 0:04:17]} 18. Nxg5 {[%emt 0:00:17]} Qxg5 {[%emt 0:00:22]} 19. Bxf4 {[%emt 0:00:22]} Bg4 {[%emt 0:06:45]} 20. Qe3 {[%emt 0:01:55]} Qf6 {[%emt 0:05:00]} 21. Qd2 {[%emt 0:10:03]} Rae8 {[%emt 0:04:07]} 22. Rf2 {[%emt 0:06:40]} Re2 {[%emt 0:14:07]} 23. Rxe2 {[%emt 0:00:43]} Bxe2 {[%emt 0:00:20]} 24. Qxe2 {[%emt 0:00:37]} Qxf4 {[%emt 0:00:05]} 25. Re1 {[%emt 0:00:21]} Qf2 {[%emt 0:02:12]} 26. h3 {[%emt 0:02:15]} Qg3 {[%emt 0:04:59]} 27. Qe6+ {[%emt 0:01:52]} Kh8 {[%emt 0:00:43]} 28. c5 {[%emt 0:01:20]} h5 {[%emt 0:02:30]} 29. cxd6 {[%emt 0:00:45]} Rf2 {[%emt 0:00:20]} 30. Rg1 {[%emt 0:00:19]} Rf8 {[%emt 0:05:55]} 31. d7 {[%emt 0:00:40]} Qg5 {[%emt 0:02:52]} 32. Re1 {[%emt 0:01:58]} Rd8 {[%emt 0:03:09]} 33. d6 {[%emt 0:01:15]} Kh7 {[%emt 0:00:16]} 34. Qf7 {[%emt 0:03:19]} Qf5 {[%emt 0:02:28]} 35. Qxf5 {[%emt 0:02:22]} gxf5 {[%emt 0:00:09]} 36. Re7 {[%emt 0:00:05]} Kg6 {[%emt 0:00:08]} 37. Kg1 {[%emt 0:00:05]} Kf6 {[%emt 0:00:08]} 38. Kf2 {[%emt 0:00:05]} g5 {[%emt 0:00:14]} 39. Ke3 {[%emt 0:00:05]} f4+ {[%emt 0:01:11]} 40. Ke4 {[%emt 0:00:25]} h4 {[%emt 0:00:38]} 41. a3 {[%emt 0:00:57]} a5 {[%emt 0:00:13]} 42. a4 {[%emt 0:00:07]} b6 {[%emt 0:02:45]} 43. b3 {[%emt 0:00:06]} Kg6 {[%emt 0:00:10]} 44. Ke5 {[%emt 0:00:12]} Kh6 {[%emt 0:00:43]} 45. Kf5 {[%emt 0:00:07]} Rf8+ {[%emt 0:00:11]} 46. Kg4 {[%emt 0:01:03]} Rd8 {[%emt 0:00:05]} 47. Re6+ {[%emt 0:00:05]} Kh7 {[%emt 0:00:24]} 48. Kxg5 {[%emt 0:00:05]} Rxd7 {[%emt 0:00:10]} 49. Re7+ {[%emt 0:00:07]} Rxe7 {[%emt 0:00:24]} 50. dxe7 {[%emt 0:00:06]} 1-0

[Event "FIDE WCCC Open-08 2024"]
[Site "Montesilvano"]
[Date "2024.11.19"]
[Round "5.32"]
[White "Sivan, Leeor"]
[Black "Cherem, Yoseph"]
[Result "1-0"]
[ECO "B11"]
[WhiteElo "1464"]
[BlackElo "1634"]
[Annotator "NA RC"]
[PlyCount "95"]
[EventDate "2024.11.18"]
[EventType "swiss"]
[EventCountry "ITA"]
[SourceTitle "playchess.com"]
[Source "ChessBase"]
[SourceQuality "1"]
[TimeControl "5400+30"]

1. e4 {[%emt 0:00:46]} c6 {[%emt 0:00:17]} 2. Nf3 {[%emt 0:00:19]} d5 {[%emt 0:00:27]} 3. Nc3 {[%emt 0:01:03]} dxe4 {[%emt 0:00:20]} 4. Nxe4 {[%emt 0:00:17]} Nf6 {[%emt 0:00:28]} 5. Qe2 {[%emt 0:00:48]} Nxe4 {[%emt 0:00:35]} 6. Qxe4 {[%emt 0:00:09]} Nd7 {[%emt 0:00:59]} 7. Bc4 {[%emt 0:00:53]} Nf6 {[%emt 0:00:21]} 8. Ne5 {[%emt 0:00:53]} e6 {[%emt 1:31:03]} 9. Qe2 {[%emt 0:04:16]} Bd6 {[%emt 0:00:00]} 10. O-O {[%emt 0:00:42]} O-O {[%emt 0:00:00]} 11. b3 {[%emt 0:00:30]} Qc7 {[%emt 0:00:00]} 12. Bb2 {[%emt 0:01:05]} a5 {[%emt 0:00:00]} 13. a4 {[%emt 0:02:52]} Nd7 {[%emt 0:00:00]} 14. Nxf7 {[%emt 0:05:32]} Rxf7 {[%emt 0:00:00]} 15. Bxe6 {[%emt 0:01:23]} Be5 {[%emt 0:00:00]} 16. Bxf7+ {[%emt 0:00:25]} Kxf7 {[%emt 0:00:00]} 17. Rfe1 {[%emt 0:02:28]} Bxh2+ {[%emt 0:00:00]} 18. Kh1 {[%emt 0:00:24]} Nf6 {[%emt 0:00:00]} 19. g3 {[%emt 0:01:44]} Bxg3 {[%emt 0:00:00]} 20. fxg3 {[%emt 0:00:18]} Bf5 {[%emt 0:00:00]} 21. Qc4+ {[%emt 0:01:49]} Kg6 {[%emt 0:00:00]} 22. d3 {[%emt 0:07:25]} Ng4 {[%emt 0:00:00]} 23. Kg2 {[%emt 0:03:35]} h5 {[%emt 0:00:00]} 24. Be5 {[%emt 0:06:39]} Nxe5 {[%emt 0:00:00]} 25. Qf4 {[%emt 0:00:14]} Re8 {[%emt 0:00:00]} 26. d4 {[%emt 0:00:36]} Bxc2 {[%emt 0:00:00]} 27. dxe5 {[%emt 0:01:38]} Kh7 {[%emt 0:00:00]} 28. Rh1 {[%emt 0:00:50]} Bg6 {[%emt 0:00:00]} 29. Rae1 {[%emt 0:01:42]} Qd7 {[%emt 0:00:00]} 30. g4 {[%emt 0:02:55]} Qd5+ {[%emt 0:00:00]} 31. Qf3 {[%emt 0:00:25]} Qd2+ {[%emt 0:00:00]} 32. Re2 {[%emt 0:02:32]} Qg5 {[%emt 0:00:00]} 33. Qg3 {[%emt 0:01:27]} Kh6 {[%emt 0:00:00]} 34. Rh3 {[%emt 0:03:03]} Bf7 {[%emt 0:00:00]} 35. e6 {[%emt 0:01:50]} Bg6 {[%emt 0:00:00]} 36. gxh5 {[%emt 0:09:02]} Qxg3+ {[%emt 0:00:00]} 37. Rxg3 {[%emt 0:01:52]} Bxh5 {[%emt 0:00:00]} 38. Re5 {[%emt 0:00:31]} b6 {[%emt 0:00:00]} 39. Rd3 {[%emt 0:00:54]} b5 {[%emt 0:15:30]} 40. Rd6 {[%emt 0:00:47]} bxa4 {[%emt 0:00:00]} 41. bxa4 {[%emt 0:00:17]} Rf8 {[%emt 0:00:00]} 42. e7+ {[%emt 0:00:28]} Rf6 {[%emt 0:00:00]} 43. Rxh5+ {[%emt 0:00:14]} Kxh5 {[%emt 0:00:00]} 44. e8=Q+ {[%emt 0:00:13]} Kg5 {[%emt 0:00:00]} 45. Qe5+ {[%emt 0:00:36]} Rf5 {[%emt 0:00:00]} 46. Qg3+ {[%emt 0:00:12]} Kh5 {[%emt 0:00:00]} 47. Rg6 {[%emt 0:00:25]} Rf2+ {[%emt 0:00:00]} 48. Kxf2 {[%emt 0:00:21]} 1-0

[Event "FIDE WCCC Open-08 2024"]
[Site "Montesilvano"]
[Date "2024.11.19"]
[Round "5.33"]
[White "Kortmann, Pedro Reck"]
[Black "Reclik, Jakub"]
[Result "1-0"]
[ECO "C54"]
[WhiteElo "1630"]
[BlackElo "1458"]
[Annotator "NA RC"]
[PlyCount "53"]
[EventDate "2024.11.18"]
[EventType "swiss"]
[EventCountry "ITA"]
[SourceTitle "playchess.com"]
[Source "ChessBase"]
[SourceQuality "1"]
[TimeControl "5400+30"]

1. e4 {[%emt 0:00:08]} e5 {[%emt 0:00:18]} 2. Nf3 {[%emt 0:00:16]} Nc6 {[%emt 0:00:18]} 3. d4 {[%emt 0:00:33]} exd4 {[%emt 0:00:25]} 4. Bc4 {[%emt 0:00:24]} Bc5 {[%emt 0:00:49]} 5. c3 {[%emt 0:00:18]} Nf6 {[%emt 0:00:39]} 6. cxd4 {[%emt 0:00:26]} Bb4+ {[%emt 0:00:21]} 7. Nc3 {[%emt 0:01:25]} Nxe4 {[%emt 0:00:43]} 8. O-O {[%emt 0:00:45]} Bxc3 {[%emt 0:00:30]} 9. bxc3 {[%emt 0:00:31]} d5 {[%emt 0:06:21]} 10. Bb5 {[%emt 0:00:58]} Bd7 {[%emt 0:08:51]} 11. Qb3 {[%emt 0:05:18]} O-O {[%emt 0:03:17]} 12. Bd3 {[%emt 0:03:05]} Nf6 {[%emt 0:01:35]} 13. Bg5 {[%emt 0:02:15]} Na5 {[%emt 0:03:33]} 14. Qc2 {[%emt 0:01:30]} h6 {[%emt 0:01:08]} 15. Bh4 {[%emt 0:00:43]} Bg4 {[%emt 0:04:39]} 16. Ne5 {[%emt 0:00:32]} Be6 {[%emt 0:00:29]} 17. Rfe1 {[%emt 0:06:21]} b6 {[%emt 0:05:42]} 18. Re3 {[%emt 0:01:09]} c5 {[%emt 0:02:24]} 19. Rg3 {[%emt 0:05:23]} c4 {[%emt 0:06:17]} 20. Bf5 {[%emt 0:02:09]} Rc8 {[%emt 0:02:50]} 21. Bxe6 {[%emt 0:02:12]} fxe6 {[%emt 0:00:42]} 22. Qg6 {[%emt 0:06:03]} Rc7 {[%emt 0:03:59]} 23. Ng4 {[%emt 0:01:38]} Qe7 {[%emt 0:14:01]} 24. Nxf6+ {[%emt 0:00:39]} Rxf6 {[%emt 0:00:47]} 25. Bxf6 {[%emt 0:00:19]} Qf7 {[%emt 0:00:06]} 26. Qxh6 {[%emt 0:01:46]} Rd7 {[%emt 0:00:33]} 27. Rxg7+ {[%emt 0:00:16]} 1-0

[Event "FIDE WCCC Open-08 2024"]
[Site "Montesilvano"]
[Date "2024.11.19"]
[Round "5.34"]
[White "Nguyen Phuc Cao Danh"]
[Black "Vrsalovic Acuna. Stjepan Anton"]
[Result "1-0"]
[ECO "E32"]
[WhiteElo "1627"]
[BlackElo "1452"]
[Annotator "NA RC"]
[PlyCount "61"]
[EventDate "2024.11.18"]
[EventType "swiss"]
[EventCountry "ITA"]
[SourceTitle "playchess.com"]
[Source "ChessBase"]
[SourceQuality "1"]
[TimeControl "5400+30"]

1. d4 {[%emt 0:00:05]} Nf6 {[%emt 0:00:40]} 2. c4 {[%emt 0:00:15]} e6 {[%emt 0:00:51]} 3. Nc3 {[%emt 0:00:13]} Bb4 {[%emt 0:00:45]} 4. Qc2 {[%emt 0:00:28]} b6 {[%emt 0:01:32]} 5. e4 {[%emt 0:01:59]} d5 {[%emt 0:01:28]} 6. Qa4+ {[%emt 0:00:47]} Qd7 {[%emt 0:01:19]} 7. Qxb4 {[%emt 0:00:19]} Nc6 {[%emt 0:00:30]} 8. Qa4 {[%emt 0:00:20]} Nxd4 {[%emt 0:00:55]} 9. Qxd7+ {[%emt 0:00:42]} Bxd7 {[%emt 0:00:29]} 10. Kd1 {[%emt 0:01:30]} dxe4 {[%emt 0:00:38]} 11. Be3 {[%emt 0:03:40]} c5 {[%emt 0:03:40]} 12. Rc1 {[%emt 0:01:40]} Bc6 {[%emt 0:02:02]} 13. Ke1 {[%emt 0:02:05]} O-O {[%emt 0:01:17]} 14. Nge2 {[%emt 0:00:48]} e5 {[%emt 0:01:16]} 15. Ng3 {[%emt 0:25:53]} Rad8 {[%emt 0:12:32]} 16. Bg5 {[%emt 0:01:12]} e3 {[%emt 1:08:36]} 17. fxe3 {[%emt 0:00:47]} Ne6 {[%emt 0:00:00]} 18. Bxf6 {[%emt 0:00:10]} gxf6 {[%emt 0:00:00]} 19. Nf5 {[%emt 0:00:34]} Bb7 {[%emt 0:00:00]} 20. Ne7+ {[%emt 0:00:17]} Kg7 {[%emt 0:00:00]} 21. Ned5 {[%emt 0:00:21]} Rd6 {[%emt 0:00:00]} 22. Bd3 {[%emt 0:04:16]} a6 {[%emt 0:00:00]} 23. b3 {[%emt 0:01:30]} Rfd8 {[%emt 0:00:00]} 24. Bf5 {[%emt 0:00:38]} Nf8 {[%emt 0:00:00]} 25. Ne4 {[%emt 0:01:41]} Rc6 {[%emt 0:00:00]} 26. h4 {[%emt 0:00:12]} b5 {[%emt 0:00:00]} 27. Rh3 {[%emt 0:00:28]} h5 {[%emt 0:00:00]} 28. Rg3+ {[%emt 0:00:35]} Ng6 {[%emt 0:00:00]} 29. Ne7 {[%emt 0:00:14]} Rb6 {[%emt 0:00:00]} 30. Nxg6 {[%emt 0:00:13]} fxg6 {[%emt 0:00:00]} 31. Rxg6+ {[%emt 0:00:11]} 1-0

[Event "FIDE WCCC Open-08 2024"]
[Site "Montesilvano"]
[Date "2024.11.19"]
[Round "5.36"]
[White "Khantulga, Tuvshinbayar"]
[Black "Melkonyan, Mark"]
[Result "0-1"]
[ECO "C04"]
[WhiteElo "1611"]
[BlackElo "1445"]
[Annotator "NA RC"]
[PlyCount "81"]
[EventDate "2024.11.18"]
[EventType "swiss"]
[EventCountry "ITA"]
[SourceTitle "playchess.com"]
[Source "ChessBase"]
[SourceQuality "1"]
[TimeControl "5400+30"]

1. e4 {[%emt 0:00:03]} e6 {[%emt 0:00:09]} 2. d4 {[%emt 0:00:04]} d5 {[%emt 0:00:07]} 3. Nd2 {[%emt 0:00:04]} Nc6 {[%emt 0:00:13]} 4. Ngf3 {[%emt 0:00:05]} Nf6 {[%emt 0:00:27]} 5. e5 {[%emt 0:00:13]} Nd7 {[%emt 0:00:07]} 6. Nb3 {[%emt 0:00:05]} Be7 {[%emt 0:05:55]} 7. Bb5 {[%emt 0:00:22]} O-O {[%emt 0:11:26]} 8. h4 {[%emt 0:00:45]} f6 {[%emt 0:06:36]} 9. c3 {[%emt 0:01:46]} fxe5 {[%emt 0:05:10]} 10. Bxc6 {[%emt 0:00:26]} bxc6 {[%emt 0:01:33]} 11. Na5 {[%emt 0:02:36]} e4 {[%emt 0:04:17]} 12. Nxc6 {[%emt 0:01:23]} Qe8 {[%emt 0:00:54]} 13. Nxe7+ {[%emt 0:02:09]} Qxe7 {[%emt 0:01:00]} 14. Ng5 {[%emt 0:01:11]} Qf6 {[%emt 0:08:26]} 15. Be3 {[%emt 0:00:33]} Nb6 {[%emt 0:11:02]} 16. Qh5 {[%emt 0:00:27]} Qg6 {[%emt 0:01:21]} 17. Qxg6 {[%emt 0:00:19]} hxg6 {[%emt 0:00:26]} 18. O-O-O {[%emt 0:01:07]} Nc4 {[%emt 0:01:00]} 19. h5 {[%emt 0:00:26]} Nxe3 {[%emt 0:39:51]} 20. fxe3 {[%emt 0:00:29]} Rf5 {[%emt 0:00:00]} 21. Nh3 {[%emt 0:00:20]} Rxh5 {[%emt 0:00:00]} 22. Nf4 {[%emt 0:00:19]} Rg5 {[%emt 0:00:00]} 23. Rh2 {[%emt 0:00:35]} Bd7 {[%emt 0:00:00]} 24. Rdh1 {[%emt 0:00:28]} Kf7 {[%emt 0:00:00]} 25. Rh8 {[%emt 0:00:36]} Rxh8 {[%emt 0:00:00]} 26. Rxh8 {[%emt 0:00:07]} Rg3 {[%emt 0:00:00]} 27. Kd2 {[%emt 0:00:48]} g5 {[%emt 0:00:00]} 28. Ne2 {[%emt 0:02:31]} Rxg2 {[%emt 0:00:00]} 29. Rb8 {[%emt 0:01:20]} a6 {[%emt 0:00:00]} 30. Ke1 {[%emt 0:00:59]} Bb5 {[%emt 0:00:00]} 31. Nc1 {[%emt 0:00:50]} Rg1+ {[%emt 0:00:00]} 32. Kd2 {[%emt 0:00:58]} Rg2+ {[%emt 0:00:00]} 33. Kd1 {[%emt 0:00:23]} Rxb2 {[%emt 0:00:00]} 34. Rc8 {[%emt 0:00:53]} c6 {[%emt 0:00:00]} 35. Rh8 {[%emt 0:02:06]} g4 {[%emt 0:00:00]} 36. Rh1 {[%emt 0:00:36]} g3 {[%emt 0:00:00]} 37. Rg1 {[%emt 0:00:15]} g2 {[%emt 0:00:00]} 38. Ke1 {[%emt 0:00:59]} Rc2 {[%emt 0:00:00]} 39. Kd1 {[%emt 0:00:12]} Rf2 {[%emt 0:00:00]} 40. Ke1 {[%emt 0:00:27]} Rf1+ {[%emt 0:00:00]} 41. Kd2 {[%emt 1:20:45]} 0-1